Workbook

Sheet 名单
A1: 岳阳市2025年考试录用公务员综合成绩及入围体检人员名单
A2: 面试日期 | B2: 面试分组 | C2: 序号 | D2: 姓名 | E2: 准考证号 | F2: 单位名称 | G2: 职位名称 | H2: 招录计划 | I2: 笔试成绩 | J2: 面试成绩 | K2: 综合成绩（笔试总成绩*60%+面试成绩*40%） | L2: 是否入围体检 | M2: 备注
A3: 2025-04-26 | B3: 第1组 | C3: 1 | D3: 谢群 | E3: 1101063301508 | F3: 中共岳阳市纪律检查委员会、岳阳市监察委员会 | G3: 监督执纪执法岗位1 | H3: 2 | I3: 71.45 | J3: 84.76 | K3: =I3*0.6+J3*0.4 -> 76.774 | L3: 是
A4: 2025-04-26 | B4: 第1组 | C4: 2 | D4: 欧阳梓期 | E4: 1101061802224 | F4: 中共岳阳市纪律检查委员会、岳阳市监察委员会 | G4: 监督执纪执法岗位1 | H4: 2 | I4: 71.05 | J4: 85.18 | K4: 76.702 | L4: 是
A5: 2025-04-26 | B5: 第1组 | C5: 3 | E5: 1101061804004 | F5: 中共岳阳市纪律检查委员会、岳阳市监察委员会 | G5: 监督执纪执法岗位1 | H5: 2 | I5: 66.40 | J5: 84.70 | K5: 73.720
A6: 2025-04-26 | B6: 第1组 | C6: 4 | E6: 1101061400626 | F6: 中共岳阳市纪律检查委员会、岳阳市监察委员会 | G6: 监督执纪执法岗位1 | H6: 2 | I6: 66.85 | J6: 82.12 | K6: 72.958
A7: 2025-04-26 | B7: 第1组 | C7: 5 | D7: 蒋宇迪 | E7: 1101061803014 | F7: 中共岳阳市纪律检查委员会、岳阳市监察委员会 | G7: 监督执纪执法岗位2 | H7: 2 | I7: 66.90 | J7: 86.24 | K7: 74.636 | L7: 是
A8: 2025-04-26 | B8: 第1组 | C8: 6 | D8: 夏凌云 | E8: 1101061803114 | F8: 中共岳阳市纪律检查委员会、岳阳市监察委员会 | G8: 监督执纪执法岗位2 | H8: 2 | I8: 67.30 | J8: 85.48 | K8: 74.572 | L8: 是
A9: 2025-04-26 | B9: 第1组 | C9: 7 | E9: 1101063301010 | F9: 中共岳阳市纪律检查委员会、岳阳市监察委员会 | G9: 监督执纪执法岗位2 | H9: 2 | I9: 66.25 | J9: 84.26 | K9: 73.454
A10: 2025-04-26 | B10: 第1组 | C10: 8 | E10: 1101061400320 | F10: 中共岳阳市纪律检查委员会、岳阳市监察委员会 | G10: 监督执纪执法岗位2 | H10: 2 | I10: 64.05 | J10: 84.52 | K10: 72.238
A11: 2025-04-26 | B11: 第1组 | C11: 9 | D11: 蒋思盾 | E11: 1101063308113 | F11: 中共岳阳市纪律检查委员会、岳阳市监察委员会 | G11: 监督执纪执法岗位3 | H11: 2 | I11: 69.80 | J11: 83.22 | K11: 75.168 | L11: 是
A12: 2025-04-26 | B12: 第1组 | C12: 10 | D12: 李宇杰 | E12: 1101061803915 | F12: 中共岳阳市纪律检查委员会、岳阳市监察委员会 | G12: 监督执纪执法岗位3 | H12: 2 | I12: 68.95 | J12: 82.84 | K12: 74.506 | L12: 是
A13: 2025-04-26 | B13: 第1组 | C13: 11 | E13: 1101061804025 | F13: 中共岳阳市纪律检查委员会、岳阳市监察委员会 | G13: 监督执纪执法岗位3 | H13: 2 | I13: 67.30 | J13: 82.56 | K13: 73.404
A14: 2025-04-26 | B14: 第1组 | C14: 12 | E14: 1101063304517 | F14: 中共岳阳市纪律检查委员会、岳阳市监察委员会 | G14: 监督执纪执法岗位3 | H14: 2 | I14: 67.30 | J14: 80.54 | K14: 72.596
A15: 2025-04-26 | B15: 第1组 | C15: 13 | D15: 李重威 | E15: 1101063308027 | F15: 中共岳阳市纪律检查委员会、岳阳市监察委员会 | G15: 监督执纪执法岗位4 | H15: 2 | I15: 72.50 | J15: 84.14 | K15: 77.156 | L15: 是
A16: 2025-04-26 | B16: 第1组 | C16: 14 | D16: 许潇 | E16: 1101061800805 | F16: 中共岳阳市纪律检查委员会、岳阳市监察委员会 | G16: 监督执纪执法岗位4 | H16: 2 | I16: 69.45 | J16: 85.10 | K16: 75.710 | L16: 是
A17: 2025-04-26 | B17: 第1组 | C17: 15 | E17: 1101061403118 | F17: 中共岳阳市纪律检查委员会、岳阳市监察委员会 | G17: 监督执纪执法岗位4 | H17: 2 | I17: 69.25 | J17: 82.66 | K17: 74.614
A18: 2025-04-26 | B18: 第1组 | C18: 16 | E18: 1101063302605 | F18: 中共岳阳市纪律检查委员会、岳阳市监察委员会 | G18: 监督执纪执法岗位4 | H18: 2 | I18: 68.10 | J18: 82.18 | K18: 73.732
A19: 2025-04-26 | B19: 第1组 | C19: 17 | D19: 周紫君 | E19: 1101063305909 | F19: 中共岳阳市委办公室 | G19: 外事业务岗位 | H19: 1 | I19: 67.40 | J19: 84.52 | K19: 74.248 | L19: 是
A20: 2025-04-26 | B20: 第1组 | C20: 18 | E20: 1101061804124 | F20: 中共岳阳市委办公室 | G20: 外事业务岗位 | H20: 1 | I20: 59.45 | J20: 81.76 | K20: 68.374
A21: 2025-04-26 | B21: 第1组 | C21: 19 | D21: 李鑫锐 | E21: 1101063304007 | F21: 中共岳阳市委办公室 | G21: 文字综合1 | H21: 1 | I21: 70.30 | J21: 84.04 | K21: 75.796 | L21: 是
A22: 2025-04-26 | B22: 第1组 | C22: 20 | E22: 1101061400812 | F22: 中共岳阳市委办公室 | G22: 文字综合1 | H22: 1 | I22: 71.35 | J22: 80.50 | K22: 75.010
A23: 2025-04-26 | B23: 第1组 | C23: 21 | D23: 吴怡君 | E23: 1101061801812 | F23: 中共岳阳市委办公室 | G23: 文字综合2 | H23: 1 | I23: 74.40 | J23: 87.38 | K23: 79.592 | L23: 是
A24: 2025-04-26 | B24: 第1组 | C24: 22 | E24: 1101063307829 | F24: 中共岳阳市委办公室 | G24: 文字综合2 | H24: 1 | I24: 67.20 | J24: 84.94 | K24: 74.296
A25: 2025-04-26 | B25: 第1组 | C25: 23 | D25: 卢佳卉 | E25: 1101063300903 | F25: 中共岳阳市委统战部 | G25: 文字综合 | H25: 1 | I25: 67.45 | J25: 86.76 | K25: 75.174 | L25: 是
A26: 2025-04-26 | B26: 第1组 | C26: 24 | E26: 1101063307228 | F26: 中共岳阳市委统战部 | G26: 文字综合 | H26: 1 | I26: 66.85 | J26: 83.50 | K26: 73.510
A27: 2025-04-26 | B27: 第1组 | C27: 25 | D27: 赵霖源 | E27: 1101063307107 | F27: 中国国民党革命委员会岳阳市委员会 | G27: 文字综合 | H27: 1 | I27: 68.50 | J27: 82.12 | K27: 73.948 | L27: 是
A28: 2025-04-26 | B28: 第1组 | C28: 26 | E28: 1101061402807 | F28: 中国国民党革命委员会岳阳市委员会 | G28: 文字综合 | H28: 1 | I28: 65.25 | J28: 82.36 | K28: 72.094
A29: 2025-04-26 | B29: 第1组 | C29: 27 | D29: 杨俊娴 | E29: 1101061401815 | F29: 中国民主同盟岳阳市委员会 | G29: 文字综合 | H29: 1 | I29: 72.10 | J29: 84.56 | K29: 77.084 | L29: 是
A30: 2025-04-26 | B30: 第1组 | C30: 28 | E30: 1101063303122 | F30: 中国民主同盟岳阳市委员会 | G30: 文字综合 | H30: 1 | I30: 69.05 | J30: 80.68 | K30: 73.702
A31: 2025-04-26 | B31: 第1组 | C31: 29 | D31: 冯烨 | E31: 1101063305306 | F31: 中国民主建国会岳阳市委员会 | G31: 文字综合 | H31: 1 | I31: 70.05 | J31: 84.36 | K31: 75.774 | L31: 是
A32: 2025-04-26 | B32: 第1组 | C32: 30 | E32: 1101063303618 | F32: 中国民主建国会岳阳市委员会 | G32: 文字综合 | H32: 1 | I32: 68.35 | J32: 84.52 | K32: 74.818
A33: 2025-04-26 | B33: 第1组 | C33: 31 | D33: 周煜松 | E33: 1101061804218 | F33: 九三学社岳阳市委员会 | G33: 文字综合 | H33: 1 | I33: 73.40 | J33: 86.02 | K33: 78.448 | L33: 是
A34: 2025-04-26 | B34: 第1组 | C34: 32 | E34: 1101061800928 | F34: 九三学社岳阳市委员会 | G34: 文字综合 | H34: 1 | I34: 70.65 | J34: 83.94 | K34: 75.966
A35: 2025-04-26 | B35: 第1组 | C35: 33 | D35: 贺行 | E35: 1101062900101 | F35: 岳阳市水旱灾害防御管理中心 | G35: 综合岗位 | H35: 1 | I35: 54.90 | J35: 83.16 | K35: 66.204 | L35: 是
A36: 2025-04-26 | B36: 第1组 | C36: 34 | E36: 1101062900112 | F36: 岳阳市水旱灾害防御管理中心 | G36: 综合岗位 | H36: 1 | I36: 50.65 | J36: 80.92 | K36: 62.758
A37: 2025-04-26 | B37: 第1组 | C37: 35 | D37: 白梅 | E37: 1101062900121 | F37: 岳阳市残疾人联合会 | G37: 财务人员 | H37: 1 | I37: 59.30 | J37: 77.88 | K37: 66.732 | L37: 是
A38: 2025-04-26 | B38: 第1组 | C38: 36 | E38: 1101062900119 | F38: 岳阳市残疾人联合会 | G38: 财务人员 | H38: 1 | I38: 48.45 | J38: 77.00 | K38: 59.870
A39: 2025-04-26 | B39: 第1组 | C39: 37 | D39: 程小鹏 | E39: 1101062900107 | F39: 岳阳市司法局 | G39: 综合管理 | H39: 1 | I39: 66.95 | J39: 87.16 | K39: 75.034 | L39: 是
A40: 2025-04-26 | B40: 第1组 | C40: 38 | E40: 1101062900114 | F40: 岳阳市司法局 | G40: 综合管理 | H40: 1 | I40: 63.25 | J40: 77.12 | K40: 68.798
A41: 2025-04-26 | B41: 第1组 | C41: 39 | D41: 夏贵英 | E41: 1101062900122 | F41: 岳阳市公路建设和养护中心 | G41: 公共管理 | H41: 1 | I41: 69.15 | J41: 85.44 | K41: 75.666 | L41: 是 | M41: 面试无竞争
A42: 2025-04-26 | B42: 第1组 | C42: 40 | E42: 1101062900106 | F42: 岳阳市公路建设和养护中心 | G42: 公共管理 | H42: 1 | I42: 62.15 | J42: / | K42: / | M42: 面试缺考
A43: 2025-04-26 | B43: 第2组 | C43: 41 | D43: 尧涛 | E43: 1101063307127 | F43: 中共岳阳市委社会工作部 | G43: 综合管理岗位 | H43: 1 | I43: 70.65 | J43: 79.86 | K43: 74.334 | L43: 是
A44: 2025-04-26 | B44: 第2组 | C44: 42 | E44: 1101063303722 | F44: 中共岳阳市委社会工作部 | G44: 综合管理岗位 | H44: 1 | I44: 70.60 | J44: 79.90 | K44: 74.320
A45: 2025-04-26 | B45: 第2组 | C45: 43 | D45: 智强 | E45: 1101061804216 | F45: 中共岳阳市委政法委员会 | G45: 政法改革岗位1 | H45: 1 | I45: 68.85 | J45: 80.32 | K45: 73.438 | L45: 是
A46: 2025-04-26 | B46: 第2组 | C46: 44 | E46: 1101063304018 | F46: 中共岳阳市委政法委员会 | G46: 政法改革岗位1 | H46: 1 | I46: 69.60 | J46: 56.56 | K46: 64.384
A47: 2025-04-26 | B47: 第2组 | C47: 45 | D47: 胡漪淳 | E47: 1101061403016 | F47: 中共岳阳市委政法委员会 | G47: 政法改革岗位2 | H47: 1 | I47: 77.85 | J47: 80.36 | K47: 78.854 | L47: 是
A48: 2025-04-26 | B48: 第2组 | C48: 46 | E48: 1101063305824 | F48: 中共岳阳市委政法委员会 | G48: 政法改革岗位2 | H48: 1 | I48: 73.20 | J48: 78.54 | K48: 75.336
A49: 2025-04-26 | B49: 第2组 | C49: 47 | D49: 陈名玉 | E49: 1101063306623 | F49: 岳阳市人民政府办公室 | G49: 文字综合岗位1 | H49: 1 | I49: 74.20 | J49: 81.80 | K49: 77.240 | L49: 是
A50: 2025-04-26 | B50: 第2组 | C50: 48 | E50: 1101061400926 | F50: 岳阳市人民政府办公室 | G50: 文字综合岗位1 | H50: 1 | I50: 72.15 | J50: 79.70 | K50: 75.170
A51: 2025-04-26 | B51: 第2组 | C51: 49 | D51: 杨凌眉 | E51: 1101061802406 | F51: 岳阳市人民政府办公室 | G51: 文字综合岗位2 | H51: 1 | I51: 73.15 | J51: 81.46 | K51: 76.474 | L51: 是
A52: 2025-04-26 | B52: 第2组 | C52: 50 | E52: 1101063303908 | F52: 岳阳市人民政府办公室 | G52: 文字综合岗位2 | H52: 1 | I52: 70.35 | J52: 79.88 | K52: 74.162
A53: 2025-04-26 | B53: 第2组 | C53: 51 | D53: 苏洁 | E53: 1101061400826 | F53: 岳阳市人民政府办公室 | G53: 值班岗位1 | H53: 1 | I53: 70.15 | J53: 77.86 | K53: 73.234 | L53: 是
A54: 2025-04-26 | B54: 第2组 | C54: 52 | E54: 1101061400811 | F54: 岳阳市人民政府办公室 | G54: 值班岗位1 | H54: 1 | I54: 67.40 | J54: 78.52 | K54: 71.848
A55: 2025-04-26 | B55: 第2组 | C55: 53 | D55: 陈欣雨 | E55: 1101063306215 | F55: 岳阳市人民政府办公室 | G55: 值班岗位2 | H55: 1 | I55: 69.15 | J55: 82.22 | K55: 74.378 | L55: 是
A56: 2025-04-26 | B56: 第2组 | C56: 54 | E56: 1101063301005 | F56: 岳阳市人民政府办公室 | G56: 值班岗位2 | H56: 1 | I56: 68.75 | J56: 80.64 | K56: 73.506
A57: 2025-04-26 | B57: 第2组 | C57: 55 | D57: 周思杰 | E57: 1101063307815 | F57: 岳阳市人民政府办公室 | G57: 综合管理岗位 | H57: 1 | I57: 71.95 | J57: 80.54 | K57: 75.386 | L57: 是
A58: 2025-04-26 | B58: 第2组 | C58: 56 | E58: 1101061403502 | F58: 岳阳市人民政府办公室 | G58: 综合管理岗位 | H58: 1 | I58: 68.60 | J58: 79.78 | K58: 73.072
A59: 2025-04-26 | B59: 第2组 | C59: 57 | D59: 黄潇俊 | E59: 1101063301128 | F59: 岳阳市发展和改革委员会 | G59: 法规科业务岗位1 | H59: 1 | I59: 67.85 | J59: 81.44 | K59: 73.286 | L59: 是
A60: 2025-04-26 | B60: 第2组 | C60: 58 | E60: 1101063307817 | F60: 岳阳市发展和改革委员会 | G60: 法规科业务岗位1 | H60: 1 | I60: 67.85 | J60: 81.14 | K60: 73.166
A61: 2025-04-26 | B61: 第2组 | C61: 59 | D61: 向宇航 | E61: 1101063303307 | F61: 岳阳市发展和改革委员会 | G61: 法规科业务岗位2 | H61: 1 | I61: 77.50 | J61: 80.66 | K61: 78.764 | L61: 是
A62: 2025-04-26 | B62: 第2组 | C62: 60 | E62: 1101063308218 | F62: 岳阳市发展和改革委员会 | G62: 法规科业务岗位2 | H62: 1 | I62: 73.30 | J62: 80.84 | K62: 76.316
A63: 2025-04-26 | B63: 第2组 | C63: 61 | D63: 陈哲 | E63: 1101061802718 | F63: 岳阳市发展和改革委员会 | G63: 综合科综合岗位1 | H63: 1 | I63: 71.45 | J63: 80.30 | K63: 74.990 | L63: 是
A64: 2025-04-26 | B64: 第2组 | C64: 62 | E64: 1101061402121 | F64: 岳阳市发展和改革委员会 | G64: 综合科综合岗位1 | H64: 1 | I64: 70.20 | J64: 80.72 | K64: 74.408
A65: 2025-04-26 | B65: 第2组 | C65: 63 | D65: 邱宇 | E65: 1101063305104 | F65: 岳阳市发展和改革委员会 | G65: 综合科综合岗位2 | H65: 1 | I65: 72.75 | J65: 81.26 | K65: 76.154 | L65: 是
A66: 2025-04-26 | B66: 第2组 | C66: 64 | E66: 1101063305920 | F66: 岳阳市发展和改革委员会 | G66: 综合科综合岗位2 | H66: 1 | I66: 70.25 | J66: 81.24 | K66: 74.646
A67: 2025-04-26 | B67: 第2组 | C67: 65 | D67: 黄铖 | E67: 1101063303012 | F67: 岳阳市教育体育局 | G67: 人事科科员 | H67: 1 | I67: 71.35 | J67: 80.60 | K67: =I67*0.6+J67*0.4 -> 75.050 | L67: 是
A68: 2025-04-26 | B68: 第2组 | C68: 66 | E68: 1101063305713 | F68: 岳阳市教育体育局 | G68: 人事科科员 | H68: 1 | I68: 71.25 | J68: 80.18 | K68: 74.822
A69: 2025-04-26 | B69: 第2组 | C69: 67 | D69: 陈家兴 | E69: 1101063300727 | F69: 岳阳市教育体育局 | G69: 职业与成人教育科科员 | H69: 1 | I69: 70.85 | J69: 81.50 | K69: 75.110 | L69: 是
A70: 2025-04-26 | B70: 第2组 | C70: 68 | E70: 1101063307524 | F70: 岳阳市教育体育局 | G70: 职业与成人教育科科员 | H70: 1 | I70: 70.55 | J70: 80.62 | K70: 74.578
A71: 2025-04-26 | B71: 第2组 | C71: 69 | D71: 吴秉蔚 | E71: 1101063304216 | F71: 岳阳市教育体育局 | G71: 竞训科科员 | H71: 1 | I71: 68.20 | J71: 80.12 | K71: 72.968 | L71: 是
A72: 2025-04-26 | B72: 第2组 | C72: 70 | E72: 1101061804212 | F72: 岳阳市教育体育局 | G72: 竞训科科员 | H72: 1 | I72: 68.60 | J72: 78.92 | K72: 72.728
A73: 2025-04-26 | B73: 第2组 | C73: 71 | D73: 林伟 | E73: 1101063300230 | F73: 岳阳市科学技术局 | G73: 科技项目岗1 | H73: 1 | I73: 71.75 | J73: 80.00 | K73: 75.050 | L73: 是
A74: 2025-04-26 | B74: 第2组 | C74: 72 | E74: 1101061800309 | F74: 岳阳市科学技术局 | G74: 科技项目岗1 | H74: 1 | I74: 67.65 | J74: 80.44 | K74: 72.766
A75: 2025-04-26 | B75: 第2组 | C75: 73 | D75: 刘滢 | E75: 1101063306406 | F75: 岳阳市科学技术局 | G75: 科技项目岗2 | H75: 1 | I75: 70.50 | J75: 80.14 | K75: 74.356 | L75: 是
A76: 2025-04-26 | B76: 第2组 | C76: 74 | E76: 1101061400827 | F76: 岳阳市科学技术局 | G76: 科技项目岗2 | H76: 1 | I76: 70.35 | J76: 79.38 | K76: 73.962
A77: 2025-04-26 | B77: 第2组 | C77: 75 | D77: 谢君颖 | E77: 1101063300403 | F77: 岳阳市民政局 | G77: 文秘岗位 | H77: 1 | I77: 69.25 | J77: 80.56 | K77: 73.774 | L77: 是 | M77: 面试无竞争
A78: 2025-04-26 | B78: 第2组 | C78: 76 | E78: 1101063306605 | F78: 岳阳市民政局 | G78: 文秘岗位 | H78: 1 | I78: 70.35 | J78: / | K78: / | M78: 面试缺考
A79: 2025-04-26 | B79: 第2组 | C79: 77 | D79: 李心怡 | E79: 1101061401516 | F79: 岳阳市救助管理站 | G79: 综合岗位 | H79: 1 | I79: 71.60 | J79: 80.80 | K79: =I79*0.6+J79*0.4 -> 75.280 | L79: 是
A80: 2025-04-26 | B80: 第2组 | C80: 78 | E80: 1101063302008 | F80: 岳阳市救助管理站 | G80: 综合岗位 | H80: 1 | I80: 69.40 | J80: 82.40 | K80: 74.600
A81: 2025-04-26 | B81: 第2组 | C81: 79 | D81: 杨珑 | E81: 1101061801617 | F81: 岳阳市文化旅游广电局 | G81: 推广传播和交流合作岗位 | H81: 1 | I81: 69.35 | J81: 80.68 | K81: 73.882 | L81: 是
A82: 2025-04-26 | B82: 第2组 | C82: 80 | E82: 1101063305420 | F82: 岳阳市文化旅游广电局 | G82: 推广传播和交流合作岗位 | H82: 1 | I82: 69.10 | J82: 80.42 | K82: 73.628
A83: 2025-04-26 | B83: 第3组 | C83: 81 | D83: 沈涛 | E83: 1101063306625 | F83: 岳阳市财政局 | G83: 财政管理岗1 | H83: 2 | I83: 72.10 | J83: 79.88 | K83: 75.212 | L83: 是
A84: 2025-04-26 | B84: 第3组 | C84: 82 | D84: 李文皓 | E84: 1101061801516 | F84: 岳阳市财政局 | G84: 财政管理岗1 | H84: 2 | I84: 68.40 | J84: 79.78 | K84: 72.952 | L84: 是
A85: 2025-04-26 | B85: 第3组 | C85: 83 | E85: 1101063304419 | F85: 岳阳市财政局 | G85: 财政管理岗1 | H85: 2 | I85: 67.10 | J85: 81.68 | K85: 72.932
A86: 2025-04-26 | B86: 第3组 | C86: 84 | E86: 1101063303309 | F86: 岳阳市财政局 | G86: 财政管理岗1 | H86: 2 | I86: 68.00 | J86: 79.88 | K86: 72.752
A87: 2025-04-26 | B87: 第3组 | C87: 85 | D87: 白芷怡 | E87: 1101061801201 | F87: 岳阳市财政局 | G87: 财政管理岗2 | H87: 2 | I87: 72.85 | J87: 80.88 | K87: 76.062 | L87: 是
A88: 2025-04-26 | B88: 第3组 | C88: 86 | D88: 陈思睿 | E88: 1101063307323 | F88: 岳阳市财政局 | G88: 财政管理岗2 | H88: 2 | I88: 71.60 | J88: 81.00 | K88: 75.360 | L88: 是
A89: 2025-04-26 | B89: 第3组 | C89: 87 | E89: 1101061803902 | F89: 岳阳市财政局 | G89: 财政管理岗2 | H89: 2 | I89: 69.70 | J89: 80.12 | K89: 73.868
A90: 2025-04-26 | B90: 第3组 | C90: 88 | E90: 1101063305626 | F90: 岳阳市财政局 | G90: 财政管理岗2 | H90: 2 | I90: 68.10 | J90: 78.60 | K90: 72.300
A91: 2025-04-26 | B91: 第3组 | C91: 89 | D91: 甘小琦 | E91: 1101063305225 | F91: 岳阳市财政局 | G91: 财政管理岗3 | H91: 2 | I91: 74.20 | J91: 80.68 | K91: 76.792 | L91: 是
A92: 2025-04-26 | B92: 第3组 | C92: 90 | D92: 匡劭勤 | E92: 1101063300525 | F92: 岳阳市财政局 | G92: 财政管理岗3 | H92: 2 | I92: 72.15 | J92: 82.98 | K92: 76.482 | L92: 是
A93: 2025-04-26 | B93: 第3组 | C93: 91 | E93: 1101063301329 | F93: 岳阳市财政局 | G93: 财政管理岗3 | H93: 2 | I93: 72.10 | J93: 81.54 | K93: 75.876
A94: 2025-04-26 | B94: 第3组 | C94: 92 | E94: 1101063307728 | F94: 岳阳市财政局 | G94: 财政管理岗3 | H94: 2 | I94: 70.40 | J94: 80.22 | K94: 74.328
A95: 2025-04-26 | B95: 第3组 | C95: 93 | D95: 张锐 | E95: 1101061403229 | F95: 岳阳市财政局 | G95: 财政管理岗4 | H95: 2 | I95: 78.10 | J95: 81.24 | K95: 79.356 | L95: 是
A96: 2025-04-26 | B96: 第3组 | C96: 94 | D96: 张佩 | E96: 1101063307104 | F96: 岳阳市财政局 | G96: 财政管理岗4 | H96: 2 | I96: 69.00 | J96: 80.72 | K96: 73.688 | L96: 是
A97: 2025-04-26 | B97: 第3组 | C97: 95 | E97: 1101063300920 | F97: 岳阳市财政局 | G97: 财政管理岗4 | H97: 2 | I97: 68.85 | J97: 80.14 | K97: 73.366
A98: 2025-04-26 | B98: 第3组 | C98: 96 | E98: 1101061803721 | F98: 岳阳市财政局 | G98: 财政管理岗4 | H98: 2 | I98: 68.80 | J98: 80.16 | K98: 73.344
A99: 2025-04-26 | B99: 第3组 | C99: 97 | D99: 张祥 | E99: 1101063300222 | F99: 岳阳市国库集中支付核算中心 | G99: 财务管理岗1 | H99: 1 | I99: 71.25 | J99: 77.66 | K99: 73.814 | L99: 是
A100: 2025-04-26 | B100: 第3组 | C100: 98 | E100: 1101061801918 | F100: 岳阳市国库集中支付核算中心 | G100: 财务管理岗1 | H100: 1 | I100: 67.50 | J100: 80.82 | K100: 72.828
A101: 2025-04-26 | B101: 第3组 | C101: 99 | D101: 曹颖彤 | E101: 1101063307110 | F101: 岳阳市国库集中支付核算中心 | G101: 财务管理岗2 | H101: 1 | I101: 67.05 | J101: 81.10 | K101: 72.670 | L101: 是
A102: 2025-04-26 | B102: 第3组 | C102: 100 | E102: 1101061401629 | F102: 岳阳市国库集中支付核算中心 | G102: 财务管理岗2 | H102: 1 | I102: 61.65 | J102: 79.16 | K102: 68.654
A103: 2025-04-26 | B103: 第3组 | C103: 101 | D103: 陈佳瑶 | E103: 1101063302403 | F103: 岳阳市就业服务中心 | G103: 宣传专干 | H103: 1 | I103: 69.55 | J103: 80.72 | K103: 74.018 | L103: 是
A104: 2025-04-26 | B104: 第3组 | C104: 102 | E104: 1101063307730 | F104: 岳阳市就业服务中心 | G104: 宣传专干 | H104: 1 | I104: 68.50 | J104: 79.54 | K104: 72.916
A105: 2025-04-26 | B105: 第3组 | C105: 103 | D105: 何可心 | E105: 1101063305216 | F105: 岳阳市就业服务中心 | G105: 审计专干 | H105: 1 | I105: 68.80 | J105: 81.30 | K105: 73.800 | L105: 是
A106: 2025-04-26 | B106: 第3组 | C106: 104 | E106: 1101061800501 | F106: 岳阳市就业服务中心 | G106: 审计专干 | H106: 1 | I106: 67.65 | J106: 79.70 | K106: 72.470
A107: 2025-04-26 | B107: 第3组 | C107: 105 | D107: 谢亮 | E107: 1101061401417 | F107: 岳阳市养老和工伤保险服务中心 | G107: 财务管理1 | H107: 1 | I107: 67.90 | J107: 78.52 | K107: 72.148 | L107: 是
A108: 2025-04-26 | B108: 第3组 | C108: 106 | E108: 1101063303720 | F108: 岳阳市养老和工伤保险服务中心 | G108: 财务管理1 | H108: 1 | I108: 67.40 | J108: 78.78 | K108: 71.952
A109: 2025-04-26 | B109: 第3组 | C109: 107 | D109: 罗宁 | E109: 1101063305715 | F109: 岳阳市养老和工伤保险服务中心 | G109: 财务管理2 | H109: 1 | I109: 71.65 | J109: 79.66 | K109: 74.854 | L109: 是
A110: 2025-04-26 | B110: 第3组 | C110: 108 | E110: 1101063300226 | F110: 岳阳市养老和工伤保险服务中心 | G110: 财务管理2 | H110: 1 | I110: 70.75 | J110: 80.60 | K110: 74.690
A111: 2025-04-26 | B111: 第3组 | C111: 109 | D111: 朱科力 | E111: 1101063308030 | F111: 岳阳市养老和工伤保险服务中心 | G111: 信息统计1 | H111: 1 | I111: 70.80 | J111: 78.52 | K111: 73.888 | L111: 是
A112: 2025-04-26 | B112: 第3组 | C112: 110 | E112: 1101063308424 | F112: 岳阳市养老和工伤保险服务中心 | G112: 信息统计1 | H112: 1 | I112: 70.25 | J112: 72.68 | K112: 71.222
A113: 2025-04-26 | B113: 第3组 | C113: 111 | D113: 陈悠 | E113: 1101061800528 | F113: 岳阳市养老和工伤保险服务中心 | G113: 信息统计2 | H113: 1 | I113: 69.80 | J113: 81.16 | K113: 74.344 | L113: 是
A114: 2025-04-26 | B114: 第3组 | C114: 112 | E114: 1101061803103 | F114: 岳阳市养老和工伤保险服务中心 | G114: 信息统计2 | H114: 1 | I114: 66.05 | J114: 80.98 | K114: 72.022
A115: 2025-04-26 | B115: 第3组 | C115: 113 | D115: 袁帅 | E115: 1101061801002 | F115: 岳阳市劳动人事争议仲裁院 | G115: 仲裁员1 | H115: 1 | I115: 65.00 | J115: 80.26 | K115: 71.104 | L115: 是
A116: 2025-04-26 | B116: 第3组 | C116: 114 | E116: 1101063302230 | F116: 岳阳市劳动人事争议仲裁院 | G116: 仲裁员1 | H116: 1 | I116: 65.00 | J116: 80.24 | K116: 71.096
A117: 2025-04-26 | B117: 第3组 | C117: 115 | D117: 毛碧莲 | E117: 1101061800326 | F117: 岳阳市劳动人事争议仲裁院 | G117: 仲裁员2 | H117: 1 | I117: 66.60 | J117: 80.22 | K117: 72.048 | L117: 是
A118: 2025-04-26 | B118: 第3组 | C118: 116 | E118: 1101063301628 | F118: 岳阳市劳动人事争议仲裁院 | G118: 仲裁员2 | H118: 1 | I118: 64.55 | J118: 80.70 | K118: 71.010
A119: 2025-04-26 | B119: 第3组 | C119: 117 | D119: 管佩雯 | E119: 1101063307124 | F119: 岳阳市自然资源和规划局 | G119: 规划管理岗位 | H119: 1 | I119: 73.70 | J119: 80.76 | K119: 76.524 | L119: 是
A120: 2025-04-26 | B120: 第3组 | C120: 118 | E120: 1101061403926 | F120: 岳阳市自然资源和规划局 | G120: 规划管理岗位 | H120: 1 | I120: 71.40 | J120: 80.92 | K120: 75.208
A121: 2025-04-26 | B121: 第3组 | C121: 119 | D121: 陈娟 | E121: 1101063304307 | F121: 岳阳市生态环境局 | G121: 生态环境管理 | H121: 1 | I121: 65.65 | J121: 79.86 | K121: 71.334 | L121: 是
A122: 2025-04-26 | B122: 第3组 | C122: 120 | E122: 1101063304801 | F122: 岳阳市生态环境局 | G122: 生态环境管理 | H122: 1 | I122: 65.15 | J122: 79.48 | K122: 70.882
A123: 2025-04-26 | B123: 第4组 | C123: 121 | D123: 许闱熹 | E123: 1101061802328 | F123: 岳阳市住房和城乡建设局 | G123: 工程管理岗位 | H123: 1 | I123: 71.70 | J123: 81.78 | K123: 75.732 | L123: 是
A124: 2025-04-26 | B124: 第4组 | C124: 122 | E124: 1101063301711 | F124: 岳阳市住房和城乡建设局 | G124: 工程管理岗位 | H124: 1 | I124: 73.10 | J124: 79.14 | K124: 75.516
A125: 2025-04-26 | B125: 第4组 | C125: 123 | D125: 张隽翊 | E125: 1101061403219 | F125: 岳阳市绿色建筑产业发展服务中心 | G125: 绿色建材发展应用岗位 | H125: 1 | I125: 71.65 | J125: 79.94 | K125: 74.966 | L125: 是
A126: 2025-04-26 | B126: 第4组 | C126: 124 | E126: 1101063301819 | F126: 岳阳市绿色建筑产业发展服务中心 | G126: 绿色建材发展应用岗位 | H126: 1 | I126: 70.50 | J126: 81.66 | K126: 74.964
A127: 2025-04-26 | B127: 第4组 | C127: 125 | D127: 王曦 | E127: 1101063304329 | F127: 岳阳市园林绿化管理中心 | G127: 市政工程管理岗 | H127: 1 | I127: 69.55 | J127: 78.52 | K127: 73.138 | L127: 是
A128: 2025-04-26 | B128: 第4组 | C128: 126 | E128: 1101063302415 | F128: 岳阳市园林绿化管理中心 | G128: 市政工程管理岗 | H128: 1 | I128: 69.15 | J128: 76.94 | K128: 72.266
A129: 2025-04-26 | B129: 第4组 | C129: 127 | D129: 杜思雨 | E129: 1101061401819 | F129: 岳阳市园林绿化管理中心 | G129: 财务管理岗 | H129: 1 | I129: 68.05 | J129: 78.26 | K129: 72.134 | L129: 是
A130: 2025-04-26 | B130: 第4组 | C130: 128 | E130: 1101061404009 | F130: 岳阳市园林绿化管理中心 | G130: 财务管理岗 | H130: 1 | I130: 64.35 | J130: 79.02 | K130: 70.218
A131: 2025-04-26 | B131: 第4组 | C131: 129 | D131: 乐文豪 | E131: 1101061803307 | F131: 岳阳市水运事务中心 | G131: 安全管理 | H131: 1 | I131: 69.40 | J131: 79.12 | K131: =I131*0.6+J131*0.4 -> 73.288 | L131: 是
A132: 2025-04-26 | B132: 第4组 | C132: 130 | E132: 1101063306810 | F132: 岳阳市水运事务中心 | G132: 安全管理 | H132: 1 | I132: 69.05 | J132: 77.78 | K132: 72.542
A133: 2025-04-26 | B133: 第4组 | C133: 131 | D133: 范新洲 | E133: 1101061401301 | F133: 岳阳市水运事务中心 | G133: 港口与航运管理 | H133: 1 | I133: 73.55 | J133: 77.48 | K133: 75.122 | L133: 是
A134: 2025-04-26 | B134: 第4组 | C134: 132 | E134: 1101061403618 | F134: 岳阳市水运事务中心 | G134: 港口与航运管理 | H134: 1 | I134: 66.25 | J134: 76.28 | K134: 70.262
A135: 2025-04-26 | B135: 第4组 | C135: 133 | D135: 舒灿 | E135: 1101063302009 | F135: 岳阳市水运事务中心 | G135: 海事管理 | H135: 1 | I135: 68.85 | J135: 79.66 | K135: 73.174 | L135: 是
A136: 2025-04-26 | B136: 第4组 | C136: 134 | E136: 1101063304026 | F136: 岳阳市水运事务中心 | G136: 海事管理 | H136: 1 | I136: 66.70 | J136: 79.94 | K136: 71.996
A137: 2025-04-26 | B137: 第4组 | C137: 135 | D137: 张羽涵 | E137: 1101061804117 | F137: 岳阳市水利局 | G137: 运行管理与监督科业务岗位 | H137: 1 | I137: 69.05 | J137: 78.88 | K137: 72.982 | L137: 是
A138: 2025-04-26 | B138: 第4组 | C138: 136 | E138: 1101063304520 | F138: 岳阳市水利局 | G138: 运行管理与监督科业务岗位 | H138: 1 | I138: 65.30 | J138: 79.78 | K138: 71.092
A139: 2025-04-26 | B139: 第4组 | C139: 137 | D139: 刘卓夫 | E139: 1101063304214 | F139: 岳阳市水利局 | G139: 水利工程建设科业务岗位 | H139: 1 | I139: 69.05 | J139: 79.84 | K139: 73.366 | L139: 是
A140: 2025-04-26 | B140: 第4组 | C140: 138 | E140: 1101063308208 | F140: 岳阳市水利局 | G140: 水利工程建设科业务岗位 | H140: 1 | I140: 66.40 | J140: 78.16 | K140: 71.104
A141: 2025-04-26 | B141: 第4组 | C141: 139 | D141: 刘达 | E141: 1101063303619 | F141: 岳阳市水利局 | G141: 规划计划与科技科业务岗位 | H141: 1 | I141: 68.20 | J141: 81.60 | K141: 73.560 | L141: 是
A142: 2025-04-26 | B142: 第4组 | C142: 140 | E142: 1101063307923 | F142: 岳阳市水利局 | G142: 规划计划与科技科业务岗位 | H142: 1 | I142: 65.60 | J142: 78.56 | K142: 70.784
A143: 2025-04-26 | B143: 第4组 | C143: 141 | D143: 张熙 | E143: 1101061403604 | F143: 岳阳市水旱灾害防御管理中心 | G143: 水利业务岗1 | H143: 1 | I143: 71.00 | J143: 79.40 | K143: 74.360 | L143: 是
A144: 2025-04-26 | B144: 第4组 | C144: 142 | E144: 1101063301921 | F144: 岳阳市水旱灾害防御管理中心 | G144: 水利业务岗1 | H144: 1 | I144: 64.45 | J144: 78.24 | K144: 69.966
A145: 2025-04-26 | B145: 第4组 | C145: 143 | D145: 徐丽星 | E145: 1101061803104 | F145: 岳阳市水旱灾害防御管理中心 | G145: 水利业务岗2 | H145: 1 | I145: 67.30 | J145: 82.10 | K145: 73.220 | L145: 是
A146: 2025-04-26 | B146: 第4组 | C146: 144 | E146: 1101061403614 | F146: 岳阳市水旱灾害防御管理中心 | G146: 水利业务岗2 | H146: 1 | I146: 66.60 | J146: 79.94 | K146: 71.936
A147: 2025-04-26 | B147: 第4组 | C147: 145 | D147: 何智远 | E147: 1101061402214 | F147: 岳阳市水旱灾害防御管理中心 | G147: 水利业务岗3 | H147: 1 | I147: 62.40 | J147: 78.00 | K147: 68.640 | L147: 是
A148: 2025-04-26 | B148: 第4组 | C148: 146 | E148: 1101061402303 | F148: 岳阳市水旱灾害防御管理中心 | G148: 水利业务岗3 | H148: 1 | I148: 51.05 | J148: 72.46 | K148: 59.614
A149: 2025-04-26 | B149: 第4组 | C149: 147 | D149: 彭威铭 | E149: 1101061800710 | F149: 岳阳市商务局 | G149: 招商联络1 | H149: 1 | I149: 70.90 | J149: 79.12 | K149: 74.188 | L149: 是
A150: 2025-04-26 | B150: 第4组 | C150: 148 | E150: 1101061401527 | F150: 岳阳市商务局 | G150: 招商联络1 | H150: 1 | I150: 65.35 | J150: 79.90 | K150: 71.170
A151: 2025-04-26 | B151: 第4组 | C151: 149 | D151: 陆懿 | E151: 1101063305323 | F151: 岳阳市商务局 | G151: 招商联络2 | H151: 1 | I151: 71.55 | J151: 80.14 | K151: 74.986 | L151: 是
A152: 2025-04-26 | B152: 第4组 | C152: 150 | E152: 1101061403015 | F152: 岳阳市商务局 | G152: 招商联络2 | H152: 1 | I152: 69.45 | J152: 79.50 | K152: 73.470
A153: 2025-04-26 | B153: 第4组 | C153: 151 | D153: 冯佳睿 | E153: 1101061403315 | F153: 岳阳市审计局 | G153: 财务审计岗位1 | H153: 1 | I153: 71.15 | J153: 79.24 | K153: 74.386 | L153: 是
A154: 2025-04-26 | B154: 第4组 | C154: 152 | E154: 1101061801213 | F154: 岳阳市审计局 | G154: 财务审计岗位1 | H154: 1 | I154: 67.75 | J154: 77.52 | K154: 71.658
A155: 2025-04-26 | B155: 第4组 | C155: 153 | D155: 彭拉 | E155: 1101063306001 | F155: 岳阳市审计局 | G155: 财务审计岗位2 | H155: 1 | I155: 74.25 | J155: 80.16 | K155: 76.614 | L155: 是
A156: 2025-04-26 | B156: 第4组 | C156: 154 | E156: 1101061804319 | F156: 岳阳市审计局 | G156: 财务审计岗位2 | H156: 1 | I156: 73.70 | J156: 57.16 | K156: 67.084
A157: 2025-04-26 | B157: 第4组 | C157: 155 | D157: 王旭豪 | E157: 1101061801928 | F157: 岳阳市审计局 | G157: 工程审计岗位1 | H157: 1 | I157: 67.95 | J157: 80.52 | K157: 72.978 | L157: 是
A158: 2025-04-26 | B158: 第4组 | C158: 156 | E158: 1101061802415 | F158: 岳阳市审计局 | G158: 工程审计岗位1 | H158: 1 | I158: 68.10 | J158: 79.66 | K158: 72.724
A159: 2025-04-26 | B159: 第4组 | C159: 157 | D159: 赵穗 | E159: 1101061401702 | F159: 岳阳市审计局 | G159: 工程审计岗位2 | H159: 1 | I159: 71.75 | J159: 80.50 | K159: 75.250 | L159: 是
A160: 2025-04-26 | B160: 第4组 | C160: 158 | E160: 1101061401209 | F160: 岳阳市审计局 | G160: 工程审计岗位2 | H160: 1 | I160: 71.35 | J160: 78.24 | K160: 74.106
A161: 2025-04-26 | B161: 第4组 | C161: 159 | D161: 陈石之 | E161: 1101061403814 | F161: 岳阳市审计局 | G161: 计算机审计岗位 | H161: 1 | I161: 69.30 | J161: 81.62 | K161: 74.228 | L161: 是
A162: 2025-04-26 | B162: 第4组 | C162: 160 | E162: 1101063304712 | F162: 岳阳市审计局 | G162: 计算机审计岗位 | H162: 1 | I162: 69.10 | J162: 79.54 | K162: 73.276
A163: 2025-04-26 | B163: 第5组 | C163: 161 | D163: 张民航 | E163: 1101063305008 | F163: 岳阳市应急管理局 | G163: 安全监管 | H163: 1 | I163: 70.05 | J163: 78.18 | K163: 73.302 | L163: 是
A164: 2025-04-26 | B164: 第5组 | C164: 162 | E164: 1101063307009 | F164: 岳阳市应急管理局 | G164: 安全监管 | H164: 1 | I164: 67.15 | J164: 71.72 | K164: 68.978
A165: 2025-04-26 | B165: 第5组 | C165: 163 | D165: 王可月 | E165: 1101061802722 | F165: 岳阳市林业局 | G165: 林业技术人员1 | H165: 1 | I165: 71.05 | J165: 81.96 | K165: 75.414 | L165: 是
A166: 2025-04-26 | B166: 第5组 | C166: 164 | E166: 1101063302909 | F166: 岳阳市林业局 | G166: 林业技术人员1 | H166: 1 | I166: 69.00 | J166: 74.32 | K166: 71.128
A167: 2025-04-26 | B167: 第5组 | C167: 165 | D167: 蔡湘琴 | E167: 1101063305307 | F167: 岳阳市林业局 | G167: 林业技术人员2 | H167: 1 | I167: 68.50 | J167: 76.86 | K167: 71.844 | L167: 是
A168: 2025-04-26 | B168: 第5组 | C168: 166 | E168: 1101063306617 | F168: 岳阳市林业局 | G168: 林业技术人员2 | H168: 1 | I168: 66.95 | J168: 76.28 | K168: 70.682
A169: 2025-04-26 | B169: 第5组 | C169: 167 | D169: 曹郅祯 | E169: 1101063305215 | F169: 岳阳市市场监督管理局 | G169: 财务管理 | H169: 1 | I169: 71.65 | J169: 81.62 | K169: 75.638 | L169: 是
A170: 2025-04-26 | B170: 第5组 | C170: 168 | E170: 1101061403429 | F170: 岳阳市市场监督管理局 | G170: 财务管理 | H170: 1 | I170: 71.10 | J170: 79.44 | K170: 74.436
A171: 2025-04-26 | B171: 第5组 | C171: 169 | D171: 刘权 | E171: 1101061803005 | F171: 岳阳市市场监督管理局 | G171: 网络监管 | H171: 1 | I171: 70.70 | J171: 77.12 | K171: 73.268 | L171: 是
A172: 2025-04-26 | B172: 第5组 | C172: 170 | E172: 1101063308322 | F172: 岳阳市市场监督管理局 | G172: 网络监管 | H172: 1 | I172: 67.30 | J172: 77.40 | K172: 71.340
A173: 2025-04-26 | B173: 第5组 | C173: 171 | D173: 刘家鹏 | E173: 1101061400508 | F173: 岳阳市市场监督管理局 | G173: 特种设备安全监管 | H173: 1 | I173: 75.75 | J173: 79.44 | K173: 77.226 | L173: 是
A174: 2025-04-26 | B174: 第5组 | C174: 172 | E174: 1101061800906 | F174: 岳阳市市场监督管理局 | G174: 特种设备安全监管 | H174: 1 | I174: 70.80 | J174: 82.64 | K174: 75.536
A175: 2025-04-26 | B175: 第5组 | C175: 173 | D175: 肖琪 | E175: 1101063307117 | F175: 岳阳市农村抽样调查队 | G175: 统计综合 | H175: 1 | I175: 70.35 | J175: 78.28 | K175: 73.522 | L175: 是
A176: 2025-04-26 | B176: 第5组 | C176: 174 | E176: 1101061403018 | F176: 岳阳市农村抽样调查队 | G176: 统计综合 | H176: 1 | I176: 69.00 | J176: 76.62 | K176: 72.048
A177: 2025-04-26 | B177: 第5组 | C177: 175 | D177: 缪星淋 | E177: 1101063303129 | F177: 岳阳市机关事务管理局 | G177: 文字综合岗位 | H177: 1 | I177: 70.80 | J177: 77.00 | K177: 73.280 | L177: 是
A178: 2025-04-26 | B178: 第5组 | C178: 176 | E178: 1101063306409 | F178: 岳阳市机关事务管理局 | G178: 文字综合岗位 | H178: 1 | I178: 69.10 | J178: 78.86 | K178: 73.004
A179: 2025-04-26 | B179: 第5组 | C179: 177 | D179: 王睿 | E179: 1101061400208 | F179: 岳阳市医疗保障事务中心 | G179: 医保业务经办1 | H179: 1 | I179: 62.75 | J179: 85.40 | K179: 71.810 | L179: 是
A180: 2025-04-26 | B180: 第5组 | C180: 178 | E180: 1101063300725 | F180: 岳阳市医疗保障事务中心 | G180: 医保业务经办1 | H180: 1 | I180: 63.35 | J180: 80.50 | K180: 70.210
A181: 2025-04-26 | B181: 第5组 | C181: 179 | D181: 张晶 | E181: 1101063301513 | F181: 岳阳市医疗保障事务中心 | G181: 医保业务经办2 | H181: 1 | I181: 68.25 | J181: 80.42 | K181: 73.118 | L181: 是
A182: 2025-04-26 | B182: 第5组 | C182: 180 | E182: 1101063307129 | F182: 岳阳市医疗保障事务中心 | G182: 医保业务经办2 | H182: 1 | I182: 64.35 | J182: 76.50 | K182: 69.210
A183: 2025-04-26 | B183: 第5组 | C183: 181 | D183: 夏灿辉 | E183: 1101061401402 | F183: 岳阳市政务服务中心 | G183: 政务服务管理岗 | H183: 1 | I183: 68.20 | J183: 78.40 | K183: 72.280 | L183: 是
A184: 2025-04-26 | B184: 第5组 | C184: 182 | E184: 1101063300227 | F184: 岳阳市政务服务中心 | G184: 政务服务管理岗 | H184: 1 | I184: 68.20 | J184: 78.22 | K184: 72.208
A185: 2025-04-26 | B185: 第5组 | C185: 183 | D185: 陈有为 | E185: 1101063301408 | F185: 岳阳市政务服务中心 | G185: 政务服务宣传岗 | H185: 1 | I185: 70.70 | J185: 80.58 | K185: 74.652 | L185: 是
A186: 2025-04-26 | B186: 第5组 | C186: 184 | E186: 1101063302012 | F186: 岳阳市政务服务中心 | G186: 政务服务宣传岗 | H186: 1 | I186: 68.45 | J186: 83.82 | K186: 74.598
A187: 2025-04-26 | B187: 第5组 | C187: 185 | D187: 李哲 | E187: 1101063304106 | F187: 岳阳市人民政府口岸管理办公室 | G187: 文字综合 | H187: 1 | I187: 72.90 | J187: 82.04 | K187: 76.556 | L187: 是
A188: 2025-04-26 | B188: 第5组 | C188: 186 | E188: 1101061403822 | F188: 岳阳市人民政府口岸管理办公室 | G188: 文字综合 | H188: 1 | I188: 69.80 | J188: 74.98 | K188: 71.872
A189: 2025-04-26 | B189: 第5组 | C189: 187 | D189: 李金霞 | E189: 1101063305424 | F189: 岳阳市人民政府国有资产监督管理委员会 | G189: 财务岗 | H189: 1 | I189: 70.80 | J189: 80.80 | K189: 74.800 | L189: 是
A190: 2025-04-26 | B190: 第5组 | C190: 188 | E190: 1101063306027 | F190: 岳阳市人民政府国有资产监督管理委员会 | G190: 财务岗 | H190: 1 | I190: 70.20 | J190: 76.18 | K190: 72.592
A191: 2025-04-26 | B191: 第5组 | C191: 189 | D191: 姚泽毓 | E191: 1101063307918 | F191: 岳阳市数据局 | G191: 数据管理与应用岗位 | H191: 1 | I191: 65.40 | J191: 83.02 | K191: 72.448 | L191: 是
A192: 2025-04-26 | B192: 第5组 | C192: 190 | E192: 1101061404020 | F192: 岳阳市数据局 | G192: 数据管理与应用岗位 | H192: 1 | I192: 64.35 | J192: 77.72 | K192: 69.698
A193: 2025-04-26 | B193: 第5组 | C193: 191 | D193: 唐诗 | E193: 1101063302405 | F193: 岳阳市总工会 | G193: 财务 | H193: 1 | I193: 70.35 | J193: 84.12 | K193: 75.858 | L193: 是
A194: 2025-04-26 | B194: 第5组 | C194: 192 | E194: 1101061402928 | F194: 岳阳市总工会 | G194: 财务 | H194: 1 | I194: 68.45 | J194: 79.34 | K194: 72.806
A195: 2025-04-26 | B195: 第5组 | C195: 193 | D195: 黄溯 | E195: 1101063308109 | F195: 岳阳市总工会 | G195: 文员 | H195: 1 | I195: 69.80 | J195: 81.04 | K195: =I195*0.6+J195*0.4 -> 74.296 | L195: 是
A196: 2025-04-26 | B196: 第5组 | C196: 194 | E196: 1101063301328 | F196: 岳阳市总工会 | G196: 文员 | H196: 1 | I196: 70.45 | J196: 79.84 | K196: 74.206
A197: 2025-04-26 | B197: 第5组 | C197: 195 | D197: 李星 | E197: 1101063304121 | F197: 岳阳市文学艺术界联合会 | G197: 办公室文字综合 | H197: 1 | I197: 75.10 | J197: 81.52 | K197: 77.668 | L197: 是
A198: 2025-04-26 | B198: 第5组 | C198: 196 | E198: 1101061402802 | F198: 岳阳市文学艺术界联合会 | G198: 办公室文字综合 | H198: 1 | I198: 70.60 | J198: 79.56 | K198: 74.184
A199: 2025-04-26 | B199: 第5组 | C199: 197 | D199: 任晓露 | E199: 1101061401323 | F199: 岳阳市科学技术协会 | G199: 科学普及、科技创新岗位1 | H199: 1 | I199: 71.35 | J199: 82.32 | K199: 75.738 | L199: 是
A200: 2025-04-26 | B200: 第5组 | C200: 198 | E200: 1101063303906 | F200: 岳阳市科学技术协会 | G200: 科学普及、科技创新岗位1 | H200: 1 | I200: 69.75 | J200: 79.42 | K200: 73.618
... 1291 more rows
